{"text_format":"3","workbook":"xlsx","n_sheets":6,"sheets":["Projekt","Kriteria,Varianty","Ohodnocení","Výpočet,Hodnocení","Seznamy","Horse"],"not_rendered":{"images":4,"defined_names":3},"read":"whole","date_system":"1900"}

{"sheet":"Projekt","index":0,"n_rows":51,"n_cols":13,"rows_kept":51,"merged":[[1,0,1,10],[1,12,1,14],[2,0,2,6],[4,0,4,12],[50,0,50,7]]}
[]
["Optimalizace rekultivačních a sanačních postupů pro těžbou devastované krajinné celky  ",{"$nulls":11},"ČZU, FŽP, KBÚK, © 2011"]
["s důrazem na ochranu vod a ekologickou stabilitu."]
[]
["Realizované výpočetní prostředí bylo vytvořeno na základě grantu Mininisterstva zemědělství ČR - NAZV QH 92091."]
{"$rows_empty":45}
["Výpočetní prostředí je realizováno formou prázdné šablony Microsoft Excel 2010."]

{"sheet":"Kriteria,Varianty","index":1,"n_rows":17,"n_cols":6,"rows_kept":17,"merged":[[1,1,1,5],[4,4,4,5]]}
[]
[null,"ZADAVÁNÍ VSTUPNÍCH KRITÉRIÍ a VARIANT"]
[]
[]
[null,"Kriteria:","Jednotky:",null,"Varianty:"]
[]
[]
[null,null,{"$f":"IF(Tabulka2=\"\",\"\",VLOOKUP(Tabulka2,Seznamy!$B$5:$C$14,2,0))","v":""}]
[null,null,{"$f":"IF(Tabulka2=\"\",\"\",VLOOKUP(Tabulka2,Seznamy!$B$5:$C$14,2,0))","v":""},null,null,{"$f":"IF(Varianty=\"\",\"\",VLOOKUP(Varianty,Seznamy!E5:F8,2,0))","v":""}]
[null,null,{"$f":"IF(Tabulka2=\"\",\"\",VLOOKUP(Tabulka2,Seznamy!$B$5:$C$14,2,0))","v":""},null,null,{"$f":"IF(Varianty=\"\",\"\",VLOOKUP(Varianty,Seznamy!E5:F8,2,0))","v":""}]
[null,null,{"$f":"IF(Tabulka2=\"\",\"\",VLOOKUP(Tabulka2,Seznamy!$B$5:$C$14,2,0))","v":""},null,null,{"$f":"IF(Varianty=\"\",\"\",VLOOKUP(Varianty,Seznamy!E5:F8,2,0))","v":""}]
[null,null,{"$f":"IF(Tabulka2=\"\",\"\",VLOOKUP(Tabulka2,Seznamy!$B$5:$C$14,2,0))","v":""},null,null,{"$f":"IF(Varianty=\"\",\"\",VLOOKUP(Varianty,Seznamy!E5:F8,2,0))","v":""}]
[null,null,{"$f":"IF(Tabulka2=\"\",\"\",VLOOKUP(Tabulka2,Seznamy!$B$5:$C$14,2,0))","v":""}]
[null,null,{"$f":"IF(Tabulka2=\"\",\"\",VLOOKUP(Tabulka2,Seznamy!$B$5:$C$14,2,0))","v":""}]
[null,null,{"$f":"IF(Tabulka2=\"\",\"\",VLOOKUP(Tabulka2,Seznamy!$B$5:$C$14,2,0))","v":""}]
[null,null,{"$f":"IF(Tabulka2=\"\",\"\",VLOOKUP(Tabulka2,Seznamy!$B$5:$C$14,2,0))","v":""}]
[null,null,{"$f":"IF(Tabulka2=\"\",\"\",VLOOKUP(Tabulka2,Seznamy!$B$5:$C$14,2,0))","v":""}]

{"sheet":"Ohodnocení","index":2,"n_rows":36,"n_cols":11,"rows_kept":36,"merged":[[2,2,2,7],[5,2,6,2],[5,3,5,6],[5,7,6,7],[22,3,22,5]]}
[]
[]
[null,null,"Hodnoty kritérií u jednotlivých variant"]
[]
[]
[null,null," Kriteria","Varianty",{"$nulls":3},"Vliv kriteria"]
[{"$nulls":3},"Va","Vb","Vc","Vd"]
[null,null,{"$f":"IF('Kriteria,Varianty'!B8=\"\",\"\",'Kriteria,Varianty'!B8)","v":""},{"$nulls":5},{"$f":"IF(AND(Tabulka4[[#This Row],[Sloupec1]]=\"\",H8>0),\"Varianty nevyplňovat!!\",\"\")","v":""},{"$f":"SUM(Tabulka4[[#This Row],[Sloupec2]:[Sloupec5]])","v":0},"Vliv kriteria: + ... přímý vliv"]
[null,null,{"$f":"IF('Kriteria,Varianty'!B9=\"\",\"\",'Kriteria,Varianty'!B9)","v":""},{"$nulls":5},{"$f":"IF(AND(Tabulka4[[#This Row],[Sloupec1]]=\"\",H9>0),\"Varianty nevyplňovat!!\",\"\")","v":""},{"$f":"SUM(Tabulka4[[#This Row],[Sloupec2]:[Sloupec5]])","v":0},"                          - ... nepřímý vliv"]
[null,null,{"$f":"IF('Kriteria,Varianty'!B10=\"\",\"\",'Kriteria,Varianty'!B10)","v":""},{"$nulls":5},{"$f":"IF(AND(Tabulka4[[#This Row],[Sloupec1]]=\"\",H10>0),\"Varianty nevyplňovat!!\",\"\")","v":""},{"$f":"SUM(Tabulka4[[#This Row],[Sloupec2]:[Sloupec5]])","v":0}]
[null,null,{"$f":"IF('Kriteria,Varianty'!B11=\"\",\"\",'Kriteria,Varianty'!B11)","v":""},{"$nulls":5},{"$f":"IF(AND(Tabulka4[[#This Row],[Sloupec1]]=\"\",H11>0),\"Varianty nevyplňovat!!\",\"\")","v":""},{"$f":"SUM(Tabulka4[[#This Row],[Sloupec2]:[Sloupec5]])","v":0}]
[null,null,{"$f":"IF('Kriteria,Varianty'!B12=\"\",\"\",'Kriteria,Varianty'!B12)","v":""},{"$nulls":5},{"$f":"IF(AND(Tabulka4[[#This Row],[Sloupec1]]=\"\",H12>0),\"Varianty nevyplňovat!!\",\"\")","v":""},{"$f":"SUM(Tabulka4[[#This Row],[Sloupec2]:[Sloupec5]])","v":0}]
[null,null,{"$f":"IF('Kriteria,Varianty'!B13=\"\",\"\",'Kriteria,Varianty'!B13)","v":""},{"$nulls":5},{"$f":"IF(AND(Tabulka4[[#This Row],[Sloupec1]]=\"\",H13>0),\"Varianty nevyplňovat!!\",\"\")","v":""},{"$f":"SUM(Tabulka4[[#This Row],[Sloupec2]:[Sloupec5]])","v":0}]
[null,null,{"$f":"IF('Kriteria,Varianty'!B14=\"\",\"\",'Kriteria,Varianty'!B14)","v":""},{"$nulls":5},{"$f":"IF(AND(Tabulka4[[#This Row],[Sloupec1]]=\"\",H14>0),\"Varianty nevyplňovat!!\",\"\")","v":""},{"$f":"SUM(Tabulka4[[#This Row],[Sloupec2]:[Sloupec5]])","v":0}]
[null,null,{"$f":"IF('Kriteria,Varianty'!B15=\"\",\"\",'Kriteria,Varianty'!B15)","v":""},{"$nulls":5},{"$f":"IF(AND(Tabulka4[[#This Row],[Sloupec1]]=\"\",H15>0),\"Varianty nevyplňovat!!\",\"\")","v":""},{"$f":"SUM(Tabulka4[[#This Row],[Sloupec2]:[Sloupec5]])","v":0}]
[null,null,{"$f":"IF('Kriteria,Varianty'!B16=\"\",\"\",'Kriteria,Varianty'!B16)","v":""},{"$nulls":5},{"$f":"IF(AND(Tabulka4[[#This Row],[Sloupec1]]=\"\",H16>0),\"Varianty nevyplňovat!!\",\"\")","v":""},{"$f":"SUM(Tabulka4[[#This Row],[Sloupec2]:[Sloupec5]])","v":0}]
[null,null,{"$f":"IF('Kriteria,Varianty'!B17=\"\",\"\",'Kriteria,Varianty'!B17)","v":""},{"$nulls":5},{"$f":"IF(AND(Tabulka4[[#This Row],[Sloupec1]]=\"\",H17>0),\"Varianty nevyplňovat!!\",\"\")","v":""}]
[]
[]
[]
[]
[]
[{"$nulls":3},"Pomocné hodnoty (vypočtené)."]
[]
[]
[{"$nulls":3},"d","Pp","Pk","Pa","k"]
[{"$nulls":3},{"$f":"(MAX(D8:G8)-MIN(D8:G8))/10","v":0},{"$f":"MIN(D8:G8)-D27","v":0},{"$f":"MAX(D8:G8)+D27","v":0},{"$f":"IF(D8>0,AVERAGE(D8:G8),0)","v":0},{"$f":"IF(D8>0,LN(0.5)/LN((G27-E27)/(F27-E27)),0)","v":0}]
[{"$nulls":3},0,0,0,0,0]
[{"$nulls":3},0,0,0,0,0]
[{"$nulls":3},0,0,0,0,0]
[{"$nulls":3},0,0,0,0,0]
[{"$nulls":3},0,0,0,0,0]
[{"$nulls":3},0,0,0,0,0]
[{"$nulls":3},0,0,0,0,0]
[{"$nulls":3},0,0,0,0,0]
[{"$nulls":3},0,0,0,0,0]

{"sheet":"Výpočet,Hodnocení","index":3,"n_rows":19,"n_cols":8,"rows_kept":19,"merged":[[2,3,2,10],[5,3,6,3],[5,4,5,7]]}
[]
[]
[{"$nulls":3},"Vypočtené bezrozměrné hodnoty ui,j a pořadí nevážených variant."]
[]
[]
[{"$nulls":3},"Kriteria","Varianty"]
[{"$nulls":4},"Va","Vb","Vc","Vd"]
[{"$nulls":3},"P1",{"$f":"IF(Ohodnocení!D8>0,IF(Ohodnocení!H8=\"+\",POWER((Ohodnocení!D8-Ohodnocení!E27)/(Ohodnocení!F27-Ohodnocení!E27),Ohodnocení!H27),1-POWER((Ohodnocení!D8-Ohodnocení!E27)/(Ohodnocení!F27-Ohodnocení!E27),Ohodnocení!H27)),0)","v":0},{"$f":"IF(Ohodnocení!E8>0,IF(Ohodnocení!H8=\"+\",POWER((Ohodnocení!E8-Ohodnocení!E27)/(Ohodnocení!F27-Ohodnocení!E27),Ohodnocení!H27),1-POWER((Ohodnocení!E8-Ohodnocení!E27)/(Ohodnocení!F27-Ohodnocení!E27),Ohodnocení!H27)),0)","v":0},{"$f":"IF(Ohodnocení!F8>0,IF(Ohodnocení!H8=\"+\",POWER((Ohodnocení!F8-Ohodnocení!E27)/(Ohodnocení!F27-Ohodnocení!E27),Ohodnocení!H27),1-POWER((Ohodnocení!F8-Ohodnocení!E27)/(Ohodnocení!F27-Ohodnocení!E27),Ohodnocení!H27)),0)","v":0},{"$f":"IF(Ohodnocení!G8>0,IF(Ohodnocení!H8=\"+\",POWER((Ohodnocení!G8-Ohodnocení!E27)/(Ohodnocení!F27-Ohodnocení!E27),Ohodnocení!H27),1-POWER((Ohodnocení!G8-Ohodnocení!E27)/(Ohodnocení!F27-Ohodnocení!E27),Ohodnocení!H27)),0)","v":0}]
[{"$nulls":3},"P2",{"$f":"IF(Ohodnocení!D9>0,IF(Ohodnocení!H9=\"+\",POWER((Ohodnocení!D9-Ohodnocení!E28)/(Ohodnocení!F28-Ohodnocení!E28),Ohodnocení!H28),1-POWER((Ohodnocení!D9-Ohodnocení!E28)/(Ohodnocení!F28-Ohodnocení!E28),Ohodnocení!H28)),0)","v":0},{"$f":"IF(Ohodnocení!E9>0,IF(Ohodnocení!H9=\"+\",POWER((Ohodnocení!E9-Ohodnocení!E28)/(Ohodnocení!F28-Ohodnocení!E28),Ohodnocení!H28),1-POWER((Ohodnocení!E9-Ohodnocení!E28)/(Ohodnocení!F28-Ohodnocení!E28),Ohodnocení!H28)),0)","v":0},{"$f":"IF(Ohodnocení!F9>0,IF(Ohodnocení!H9=\"+\",POWER((Ohodnocení!F9-Ohodnocení!E28)/(Ohodnocení!F28-Ohodnocení!E28),Ohodnocení!H28),1-POWER((Ohodnocení!F9-Ohodnocení!E28)/(Ohodnocení!F28-Ohodnocení!E28),Ohodnocení!H28)),0)","v":0},{"$f":"IF(Ohodnocení!G9>0,IF(Ohodnocení!H9=\"+\",POWER((Ohodnocení!G9-Ohodnocení!E28)/(Ohodnocení!F28-Ohodnocení!E28),Ohodnocení!H28),1-POWER((Ohodnocení!G9-Ohodnocení!E28)/(Ohodnocení!F28-Ohodnocení!E28),Ohodnocení!H28)),0)","v":0}]
[{"$nulls":3},"P3",{"$f":"IF(Ohodnocení!D10>0,IF(Ohodnocení!H10=\"+\",POWER((Ohodnocení!D10-Ohodnocení!E29)/(Ohodnocení!F29-Ohodnocení!E29),Ohodnocení!H29),1-POWER((Ohodnocení!D10-Ohodnocení!E29)/(Ohodnocení!F29-Ohodnocení!E29),Ohodnocení!H29)),0)","v":0},{"$f":"IF(Ohodnocení!E10>0,IF(Ohodnocení!H10=\"+\",POWER((Ohodnocení!E10-Ohodnocení!E29)/(Ohodnocení!F29-Ohodnocení!E29),Ohodnocení!H29),1-POWER((Ohodnocení!E10-Ohodnocení!E29)/(Ohodnocení!F29-Ohodnocení!E29),Ohodnocení!H29)),0)","v":0},{"$f":"IF(Ohodnocení!F10>0,IF(Ohodnocení!H10=\"+\",POWER((Ohodnocení!F10-Ohodnocení!E29)/(Ohodnocení!F29-Ohodnocení!E29),Ohodnocení!H29),1-POWER((Ohodnocení!F10-Ohodnocení!E29)/(Ohodnocení!F29-Ohodnocení!E29),Ohodnocení!H29)),0)","v":0},{"$f":"IF(Ohodnocení!G10>0,IF(Ohodnocení!H10=\"+\",POWER((Ohodnocení!G10-Ohodnocení!E29)/(Ohodnocení!F29-Ohodnocení!E29),Ohodnocení!H29),1-POWER((Ohodnocení!G10-Ohodnocení!E29)/(Ohodnocení!F29-Ohodnocení!E29),Ohodnocení!H29)),0)","v":0}]
[{"$nulls":3},"P4",{"$f":"IF(Ohodnocení!D11>0,IF(Ohodnocení!H11=\"+\",POWER((Ohodnocení!D11-Ohodnocení!E30)/(Ohodnocení!F30-Ohodnocení!E30),Ohodnocení!H30),1-POWER((Ohodnocení!D11-Ohodnocení!E30)/(Ohodnocení!F30-Ohodnocení!E30),Ohodnocení!H30)),0)","v":0},{"$f":"IF(Ohodnocení!E11>0,IF(Ohodnocení!H11=\"+\",POWER((Ohodnocení!E11-Ohodnocení!E30)/(Ohodnocení!F30-Ohodnocení!E30),Ohodnocení!H30),1-POWER((Ohodnocení!E11-Ohodnocení!E30)/(Ohodnocení!F30-Ohodnocení!E30),Ohodnocení!H30)),0)","v":0},{"$f":"IF(Ohodnocení!F11>0,IF(Ohodnocení!H11=\"+\",POWER((Ohodnocení!F11-Ohodnocení!E30)/(Ohodnocení!F30-Ohodnocení!E30),Ohodnocení!H30),1-POWER((Ohodnocení!F11-Ohodnocení!E30)/(Ohodnocení!F30-Ohodnocení!E30),Ohodnocení!H30)),0)","v":0},{"$f":"IF(Ohodnocení!G11>0,IF(Ohodnocení!H11=\"+\",POWER((Ohodnocení!G11-Ohodnocení!E30)/(Ohodnocení!F30-Ohodnocení!E30),Ohodnocení!H30),1-POWER((Ohodnocení!G11-Ohodnocení!E30)/(Ohodnocení!F30-Ohodnocení!E30),Ohodnocení!H30)),0)","v":0}]
[{"$nulls":3},"P5",{"$f":"IF(Ohodnocení!D12>0,IF(Ohodnocení!H12=\"+\",POWER((Ohodnocení!D12-Ohodnocení!E31)/(Ohodnocení!F31-Ohodnocení!E31),Ohodnocení!H31),1-POWER((Ohodnocení!D12-Ohodnocení!E31)/(Ohodnocení!F31-Ohodnocení!E31),Ohodnocení!H31)),0)","v":0},{"$f":"IF(Ohodnocení!E12>0,IF(Ohodnocení!H12=\"+\",POWER((Ohodnocení!E12-Ohodnocení!E31)/(Ohodnocení!F31-Ohodnocení!E31),Ohodnocení!H31),1-POWER((Ohodnocení!E12-Ohodnocení!E31)/(Ohodnocení!F31-Ohodnocení!E31),Ohodnocení!H31)),0)","v":0},{"$f":"IF(Ohodnocení!F12>0,IF(Ohodnocení!H12=\"+\",POWER((Ohodnocení!F12-Ohodnocení!E31)/(Ohodnocení!F31-Ohodnocení!E31),Ohodnocení!H31),1-POWER((Ohodnocení!F12-Ohodnocení!E31)/(Ohodnocení!F31-Ohodnocení!E31),Ohodnocení!H31)),0)","v":0},{"$f":"IF(Ohodnocení!G12>0,IF(Ohodnocení!H12=\"+\",POWER((Ohodnocení!G12-Ohodnocení!E31)/(Ohodnocení!F31-Ohodnocení!E31),Ohodnocení!H31),1-POWER((Ohodnocení!G12-Ohodnocení!E31)/(Ohodnocení!F31-Ohodnocení!E31),Ohodnocení!H31)),0)","v":0}]
[{"$nulls":3},"P6",{"$f":"IF(Ohodnocení!D13>0,IF(Ohodnocení!H13=\"+\",POWER((Ohodnocení!D13-Ohodnocení!E32)/(Ohodnocení!F32-Ohodnocení!E32),Ohodnocení!H32),1-POWER((Ohodnocení!D13-Ohodnocení!E32)/(Ohodnocení!F32-Ohodnocení!E32),Ohodnocení!H32)),0)","v":0},{"$f":"IF(Ohodnocení!E13>0,IF(Ohodnocení!H13=\"+\",POWER((Ohodnocení!E13-Ohodnocení!E32)/(Ohodnocení!F32-Ohodnocení!E32),Ohodnocení!H32),1-POWER((Ohodnocení!E13-Ohodnocení!E32)/(Ohodnocení!F32-Ohodnocení!E32),Ohodnocení!H32)),0)","v":0},{"$f":"IF(Ohodnocení!F13>0,IF(Ohodnocení!H13=\"+\",POWER((Ohodnocení!F13-Ohodnocení!E32)/(Ohodnocení!F32-Ohodnocení!E32),Ohodnocení!H32),1-POWER((Ohodnocení!F13-Ohodnocení!E32)/(Ohodnocení!F32-Ohodnocení!E32),Ohodnocení!H32)),0)","v":0},{"$f":"IF(Ohodnocení!G13>0,IF(Ohodnocení!H13=\"+\",POWER((Ohodnocení!G13-Ohodnocení!E32)/(Ohodnocení!F32-Ohodnocení!E32),Ohodnocení!H32),1-POWER((Ohodnocení!G13-Ohodnocení!E32)/(Ohodnocení!F32-Ohodnocení!E32),Ohodnocení!H32)),0)","v":0}]
[{"$nulls":3},"P7",{"$f":"IF(Ohodnocení!D14>0,IF(Ohodnocení!H14=\"+\",POWER((Ohodnocení!D14-Ohodnocení!E33)/(Ohodnocení!F33-Ohodnocení!E33),Ohodnocení!H33),1-POWER((Ohodnocení!D14-Ohodnocení!E33)/(Ohodnocení!F33-Ohodnocení!E33),Ohodnocení!H33)),0)","v":0},{"$f":"IF(Ohodnocení!E14>0,IF(Ohodnocení!H14=\"+\",POWER((Ohodnocení!E14-Ohodnocení!E33)/(Ohodnocení!F33-Ohodnocení!E33),Ohodnocení!H33),1-POWER((Ohodnocení!E14-Ohodnocení!E33)/(Ohodnocení!F33-Ohodnocení!E33),Ohodnocení!H33)),0)","v":0},{"$f":"IF(Ohodnocení!F14>0,IF(Ohodnocení!H14=\"+\",POWER((Ohodnocení!F14-Ohodnocení!E33)/(Ohodnocení!F33-Ohodnocení!E33),Ohodnocení!H33),1-POWER((Ohodnocení!F14-Ohodnocení!E33)/(Ohodnocení!F33-Ohodnocení!E33),Ohodnocení!H33)),0)","v":0},{"$f":"IF(Ohodnocení!G14>0,IF(Ohodnocení!H14=\"+\",POWER((Ohodnocení!G14-Ohodnocení!E33)/(Ohodnocení!F33-Ohodnocení!E33),Ohodnocení!H33),1-POWER((Ohodnocení!G14-Ohodnocení!E33)/(Ohodnocení!F33-Ohodnocení!E33),Ohodnocení!H33)),0)","v":0}]
[{"$nulls":3},"P8",{"$f":"IF(Ohodnocení!D15>0,IF(Ohodnocení!H15=\"+\",POWER((Ohodnocení!D15-Ohodnocení!E34)/(Ohodnocení!F34-Ohodnocení!E34),Ohodnocení!H34),1-POWER((Ohodnocení!D15-Ohodnocení!E34)/(Ohodnocení!F34-Ohodnocení!E34),Ohodnocení!H34)),0)","v":0},{"$f":"IF(Ohodnocení!E15>0,IF(Ohodnocení!H15=\"+\",POWER((Ohodnocení!E15-Ohodnocení!E34)/(Ohodnocení!F34-Ohodnocení!E34),Ohodnocení!H34),1-POWER((Ohodnocení!E15-Ohodnocení!E34)/(Ohodnocení!F34-Ohodnocení!E34),Ohodnocení!H34)),0)","v":0},{"$f":"IF(Ohodnocení!F15>0,IF(Ohodnocení!H15=\"+\",POWER((Ohodnocení!F15-Ohodnocení!E34)/(Ohodnocení!F34-Ohodnocení!E34),Ohodnocení!H34),1-POWER((Ohodnocení!F15-Ohodnocení!E34)/(Ohodnocení!F34-Ohodnocení!E34),Ohodnocení!H34)),0)","v":0},{"$f":"IF(Ohodnocení!G15>0,IF(Ohodnocení!H15=\"+\",POWER((Ohodnocení!G15-Ohodnocení!E34)/(Ohodnocení!F34-Ohodnocení!E34),Ohodnocení!H34),1-POWER((Ohodnocení!G15-Ohodnocení!E34)/(Ohodnocení!F34-Ohodnocení!E34),Ohodnocení!H34)),0)","v":0}]
[{"$nulls":3},"P9",{"$f":"IF(Ohodnocení!D16>0,IF(Ohodnocení!H16=\"+\",POWER((Ohodnocení!D16-Ohodnocení!E35)/(Ohodnocení!F35-Ohodnocení!E35),Ohodnocení!H35),1-POWER((Ohodnocení!D16-Ohodnocení!E35)/(Ohodnocení!F35-Ohodnocení!E35),Ohodnocení!H35)),0)","v":0},{"$f":"IF(Ohodnocení!E16>0,IF(Ohodnocení!H16=\"+\",POWER((Ohodnocení!E16-Ohodnocení!E35)/(Ohodnocení!F35-Ohodnocení!E35),Ohodnocení!H35),1-POWER((Ohodnocení!E16-Ohodnocení!E35)/(Ohodnocení!F35-Ohodnocení!E35),Ohodnocení!H35)),0)","v":0},{"$f":"IF(Ohodnocení!F16>0,IF(Ohodnocení!H16=\"+\",POWER((Ohodnocení!F16-Ohodnocení!E35)/(Ohodnocení!F35-Ohodnocení!E35),Ohodnocení!H35),1-POWER((Ohodnocení!F16-Ohodnocení!E35)/(Ohodnocení!F35-Ohodnocení!E35),Ohodnocení!H35)),0)","v":0},{"$f":"IF(Ohodnocení!G16>0,IF(Ohodnocení!H16=\"+\",POWER((Ohodnocení!G16-Ohodnocení!E35)/(Ohodnocení!F35-Ohodnocení!E35),Ohodnocení!H35),1-POWER((Ohodnocení!G16-Ohodnocení!E35)/(Ohodnocení!F35-Ohodnocení!E35),Ohodnocení!H35)),0)","v":0}]
[{"$nulls":3},"P10",{"$f":"IF(Ohodnocení!D17>0,IF(Ohodnocení!H17=\"+\",POWER((Ohodnocení!D17-Ohodnocení!E36)/(Ohodnocení!F36-Ohodnocení!E36),Ohodnocení!H36),1-POWER((Ohodnocení!D17-Ohodnocení!E36)/(Ohodnocení!F36-Ohodnocení!E36),Ohodnocení!H36)),0)","v":0},{"$f":"IF(Ohodnocení!E17>0,IF(Ohodnocení!H17=\"+\",POWER((Ohodnocení!E17-Ohodnocení!E36)/(Ohodnocení!F36-Ohodnocení!E36),Ohodnocení!H36),1-POWER((Ohodnocení!E17-Ohodnocení!E36)/(Ohodnocení!F36-Ohodnocení!E36),Ohodnocení!H36)),0)","v":0},{"$f":"IF(Ohodnocení!F17>0,IF(Ohodnocení!H17=\"+\",POWER((Ohodnocení!F17-Ohodnocení!E36)/(Ohodnocení!F36-Ohodnocení!E36),Ohodnocení!H36),1-POWER((Ohodnocení!F17-Ohodnocení!E36)/(Ohodnocení!F36-Ohodnocení!E36),Ohodnocení!H36)),0)","v":0},{"$f":"IF(Ohodnocení!G17>0,IF(Ohodnocení!H17=\"+\",POWER((Ohodnocení!G17-Ohodnocení!E36)/(Ohodnocení!F36-Ohodnocení!E36),Ohodnocení!H36),1-POWER((Ohodnocení!G17-Ohodnocení!E36)/(Ohodnocení!F36-Ohodnocení!E36),Ohodnocení!H36)),0)","v":0}]
[{"$nulls":3},"Součet",{"$f":"SUM(E8:E17)","v":0},{"$f":"SUM(F8:F17)","v":0},{"$f":"SUM(G8:G17)","v":0},{"$f":"SUM(H8:H17)","v":0}]
[{"$nulls":3},"Hodnocení",{"$f":"_xlfn.RANK.AVG(E18,$E$18:$H$18)","v":2.5},{"$f":"_xlfn.RANK.AVG(F18,$E$18:$H$18)","v":2.5},{"$f":"_xlfn.RANK.AVG(G18,$E$18:$H$18)","v":2.5},{"$f":"_xlfn.RANK.AVG(H18,$E$18:$H$18)","v":2.5}]

{"sheet":"Seznamy","index":4,"n_rows":14,"n_cols":6,"rows_kept":14}
[]
[]
[]
[null,"Název kritéria","Jednotky",null,"Varianty","Specifikace varianty - uživatelský popis"]
[null,"P1   Biodiverzita                    ","relativní jednotky",null,"Va ","rekultivace 1"]
[null,"P2   Migrace obyvatel              "," bezrozměrné",null,"Vb ","rekultivace 2"]
[null,"P3   Náklady na rekultivaci      ","Kč/ha",null,"Vc ","rekultivace 3"]
[null,"P4   Ochrana před erozí          ","relativní jednotky",null,"Vd ","rekultivace 4"]
[null,"P5   Protipovodňová ochrana   ","relativní jednotky"]
[null,"P6   Stabilita výsypky               ","%"]
[null,"P7   Vodní plochy                    ","%"]
[null,"P8   Výnosy z rekultivace         ","Kč/ha"]
[null,"P9   Začlenění do krajiny         ","relativní jednotky"]
[null,"P10 ZZ faktor","rel"]

{"sheet":"Horse","index":5,"n_rows":0,"n_cols":0,"rows_kept":0,"hidden":true}